bitfinex/quotes_SOLUSD_20250528
["timestamp","ask_amount","ask_price","bid_price","bid_amount"]
[1748394635769,48.10413129,176.7,176.65,8.88]
[1748394635968,48.10413129,176.7,176.66,15.85051816]
[1748394637460,48.10413129,176.7,176.67,15.85051816]
[1748394638359,19.80758347,176.7,176.67,15.85051816]
[1748394638556,34.46,176.69,176.68,15.85051816]
[1748394639196,54.26758347,176.7,176.68,15.85051816]
[1748394639398,54.26758347,176.7,176.69,15.85051816]
[1748394640800,54.26758347,176.7,176.68,15.85051816]
[1748394641093,54.26758347,176.7,176.67,15.85051816]
[1748394641300,70.11810163,176.7,176.65,113.73051816]
[1748394641883,98.41464945,176.7,176.65,113.73051816]
[1748394642084,98.41464945,176.7,176.65,104.85051816]
[1748394642810,15.85051816,176.69,176.65,15.85051816]
[1748394643107,15.85051816,176.66,176.58,1.5875]
[1748394643261,15.85051816,176.64,176.59,15.85051816]
[1748394645004,19.81543338,176.63,176.59,15.85051816]
[1748394645319,19.81543338,176.63,176.57,8.88]
[1748394645320,19.81543338,176.63,176.61,15.85051816]
[1748394647184,14.15388099,176.63,176.61,15.85051816]
[1748394648089,14.15388099,176.63,176.57,8.88]
[1748394648090,5.66123188,176.64,176.62,15.85051816]
[1748394648290,5.66123188,176.64,176.63,15.85051816]
[1748394649814,19.81431159,176.64,176.62,15.85051816]
[1748394650012,19.81431159,176.64,176.61,15.85051816]
[1748394650182,35.66482975,176.64,176.59,15.85051816]
[1748394650686,15.85051816,176.62,176.58,15.85051816]
[1748394650883,34.46,176.61,176.58,15.85051816]
[1748394651816,5.66251415,176.6,176.58,15.85051816]
[1748394653922,5.66251415,176.6,176.59,15.85051816]
[1748394655991,5.66219353,176.61,176.59,15.85051816]
[1748394656216,5.66219353,176.61,176.6,15.85051816]
[1748394657702,19.81767736,176.61,176.56,9.0570876]
[1748394657899,19.81767736,176.61,176.58,15.85051816]
[1748394660425,19.81767736,176.61,176.56,9.0570876]
[1748394660597,5.66219353,176.61,176.6,15.85051816]
[1748394662805,19.81150613,176.67,176.6,15.85051816]
[1748394663035,34.46,176.64,176.59,26.0]
[1748394663203,34.46,176.64,176.63,15.85051816]
[1748394663621,14.15123557,176.67,176.63,15.85051816]
[1748394663800,34.46,176.66,176.64,15.85051816]
[1748394663999,14.15123557,176.67,176.65,15.85051816]
[1748394664299,5.65995019,176.68,176.66,15.85051816]
[1748394664300,40.11995019,176.68,176.66,15.85051816]
[1748394664498,40.11995019,176.68,176.67,15.85051816]
[1748394666007,54.26982567,176.68,176.62,1.524]
[1748394666226,54.26982567,176.68,176.65,15.85051816]
[1748394666421,54.26982567,176.68,176.66,15.85051816]
[1748394667845,54.26982567,176.68,176.65,15.85051816]
[1748394668644,54.26982567,176.68,176.66,15.85051816]
[1748394671224,54.26982567,176.68,176.62,1.524]
[1748394671425,54.26982567,176.68,176.6,8.88]
[1748394671616,54.26982567,176.68,176.64,15.85051816]
[1748394671817,54.26982567,176.68,176.65,15.85051816]
[1748394672117,54.26982567,176.68,176.66,15.85051816]
[1748394672317,19.80982567,176.68,176.67,15.85051816]
[1748394672513,40.11995019,176.68,176.67,15.85051816]
[1748394674353,34.46,176.68,176.67,15.85051816]
[1748394674753,5.6589893,176.71,176.67,15.85051816]
[1748394674943,5.6589893,176.71,176.7,15.85051816]
[1748394676372,34.46,176.72,176.66,8.88]
[1748394676663,34.46,176.72,176.7,15.85051816]
[1748394677443,34.46,176.72,176.68,15.85051816]
[1748394677852,34.46,176.72,176.69,15.85051816]
[1748394678246,34.46,176.72,176.7,15.85051816]
[1748394678644,5.6589893,176.71,176.7,15.85051816]
[1748394681268,40.1189893,176.71,176.7,15.85051816]
[1748394681841,5.6589893,176.71,176.7,15.85051816]
[1748394682044,40.1189893,176.71,176.7,15.85051816]
[1748394682245,5.6589893,176.71,176.7,15.85051816]
[1748394682477,48.08651685,176.77,176.7,15.85051816]
[1748394682689,48.08651685,176.77,176.67,104.85051816]
[1748394682690,34.46,176.76,176.73,15.85051816]
[1748394684265,34.46,176.75,176.73,15.85051816]
[1748394684775,34.44,176.74,176.73,15.85051816]
[1748394685650,34.44,176.74,176.72,15.85051816]
[1748394685975,34.44,176.74,176.71,15.85051816]
[1748394686150,15.85051816,176.73,176.66,8.88]
[1748394686459,15.85051816,176.73,176.68,15.85051816]
[1748394686654,19.80534178,176.72,176.68,15.85051816]
[1748394687456,19.80534178,176.72,176.66,8.88]
[1748394687665,19.80534178,176.72,176.68,15.85051816]
[1748394690376,15.85051816,176.71,176.66,24.73051816]
[1748394690575,34.44,176.7,176.67,15.85051816]
[1748394690777,34.44,176.7,176.68,15.85051816]
[1748394691861,19.80534178,176.72,176.68,15.85051816]
[1748394692067,34.44,176.71,176.7,15.85051816]
[1748394692304,34.50016702,176.75,176.7,15.85051816]
[1748394692305,19.80198019,176.75,176.7,15.85051816]
[1748394692467,19.80198019,176.75,176.72,15.85051816]
[1748394692668,34.44,176.74,176.72,15.85051816]
[1748394692870,19.80198019,176.75,176.73,15.85051816]
[1748394693169,54.24198019,176.75,176.74,15.85051816]
[1748394693388,54.24198019,176.75,176.7,26.0]
[1748394693585,54.24198019,176.75,176.72,15.85051816]
[1748394695882,82.53052333,176.75,176.71,15.85051816]
[1748394696766,98.38104149,176.75,176.7,15.85051816]
[1748394697168,15.85051816,176.74,176.69,15.85051816]
[1748394698484,19.80422112,176.73,176.7,15.85051816]
[1748394699573,14.14587223,176.73,176.7,15.85051816]
[1748394700874,5.6589893,176.71,176.7,15.85051816]
[1748394701980,5.6589893,176.71,176.69,15.85051816]
[1748394701981,19.80646256,176.71,176.69,15.85051816]
[1748394702185,19.80646256,176.71,176.68,15.85051816]
[1748394702788,19.80646256,176.71,176.66,8.88]
[1748394702996,19.80646256,176.71,176.68,15.85051816]
[1748394704591,19.80646256,176.71,176.67,15.85051816]
[1748394704592,48.10140908,176.71,176.67,15.85051816]
[1748394704897,15.85051816,176.7,176.66,24.73051816]
[1748394705095,15.85051816,176.7,176.66,15.85051816]
[1748394705989,19.80870451,176.69,176.65,25.02944572]
[1748394706190,34.44,176.68,176.65,25.02944572]
[1748394706906,34.44,176.68,176.65,15.85051816]
[1748394707977,34.44,176.68,176.62,115.0]
[1748394707978,5.66027056,176.67,176.62,115.0]
[1748394708178,5.66027056,176.67,176.66,15.85051816]
[1748394712821,5.6589893,176.71,176.66,15.85051816]
[1748394713122,34.44,176.7,176.67,15.85051816]
[1748394714706,5.65962986,176.69,176.67,15.85051816]
[1748394717607,5.65962986,176.69,176.68,15.85051816]
[1748394718319,14.14686885,176.72,176.68,15.85051816]
[1748394718504,34.44,176.7,176.69,15.85051816]
[1748394720419,40.09930956,176.7,176.69,15.85051816]
[1748394721323,5.65930956,176.7,176.69,15.85051816]
[1748394721805,34.44,176.71,176.69,104.85051816]
[1748394722012,34.44,176.71,176.7,15.85051816]
[1748394722220,5.65802874,176.74,176.7,15.85051816]
[1748394722417,34.44,176.72,176.7,15.85051816]
[1748394722639,14.14507185,176.74,176.7,15.85051816]
[1748394722817,34.44,176.72,176.7,15.85051816]
[1748394723526,5.65770862,176.75,176.71,15.85051816]
[1748394723836,5.65770862,176.75,176.74,15.85051816]
[1748394724009,40.09770862,176.75,176.74,15.85051816]
[1748394724742,14.14332653,176.77,176.74,15.85051816]
[1748394724922,34.44,176.76,176.74,15.85051816]
[1748394725938,34.44,176.76,176.71,89.0]
[1748394725939,15.85051816,176.75,176.71,89.0]
[1748394726136,15.85051816,176.73,176.69,8.86]
[1748394726309,34.44,176.72,176.69,15.85051816]
[1748394726835,5.6589893,176.71,176.69,15.85051816]
[1748394727017,5.6589893,176.71,176.68,25.51167103]
[1748394728929,5.6589893,176.71,176.68,9.66115287]
[1748394729735,5.6589893,176.71,176.68,25.51167103]
[1748394731041,5.6589893,176.71,176.68,9.66115287]
[1748394732032,5.6589893,176.71,176.68,25.51167103]
[1748394734561,5.6589893,176.71,176.68,9.66115287]
[1748394734860,5.6589893,176.71,176.68,25.51167103]
[1748394737158,19.80646256,176.71,176.68,25.51167103]
[1748394741743,19.80646256,176.71,176.68,9.66115287]
[1748394742039,15.85051816,176.7,176.68,9.66115287]
[1748394742461,35.65698072,176.71,176.68,9.66115287]
[1748394743471,19.80646256,176.71,176.68,9.66115287]
[1748394743649,5.65962986,176.69,176.68,25.51167103]
[1748394746858,34.44,176.71,176.68,25.51167103]
[1748394746859,5.65930956,176.7,176.68,25.51167103]
[1748394747049,5.65930956,176.7,176.69,15.85051816]
[1748394747865,5.65930956,176.7,176.68,9.66115287]
[1748394748171,5.65930956,176.7,176.68,25.51167103]
[1748394751561,5.65930956,176.7,176.69,15.85051816]
[1748394753897,5.65907022,176.71,176.69,15.85051816]
[1748394754074,40.09907022,176.71,176.7,15.85051816]
[1748394754792,5.65907022,176.71,176.68,9.66115287]
[1748394754974,5.65907022,176.71,176.7,15.85051816]
[1748394755569,5.65802874,176.74,176.7,15.85051816]
[1748394755796,34.44,176.73,176.7,15.85051816]
[1748394756296,5.65802874,176.74,176.7,15.85051816]
[1748394756671,34.44,176.73,176.7,15.85051816]
[1748394757297,34.44,176.73,176.68,98.66115287]
[1748394757298,34.44,176.73,176.71,15.85051816]
[1748394758670,34.44,176.73,176.7,15.85051816]
[1748394759400,5.65866908,176.72,176.7,15.85051816]
[1748394759772,19.80534178,176.72,176.69,15.85051816]
[1748394759989,19.80534178,176.72,176.68,114.51167103]
[1748394761005,19.80534178,176.72,176.68,98.66115287]
[1748394761169,35.65585994,176.72,176.68,98.66115287]
[1748394761603,19.80534178,176.72,176.68,9.66115287]
[1748394762977,15.85051816,176.71,176.68,9.66115287]
[1748394763304,34.44,176.7,176.68,9.66115287]
[1748394763873,5.65962986,176.69,176.68,9.66115287]
[1748394768412,5.65962986,176.69,176.65,15.85051816]
[1748394768725,19.80870451,176.69,176.65,15.85051816]
[1748394769226,35.65922267,176.69,176.64,15.85051816]
[1748394770109,19.81094696,176.67,176.63,15.85051816]
[1748394770309,34.44,176.66,176.63,15.85051816]
[1748394771643,5.6609114,176.65,176.63,15.85051816]
[1748394772413,19.81318991,176.65,176.62,15.85051816]
[1748394773048,19.81318991,176.65,176.61,15.85051816]
[1748394773209,35.66370807,176.65,176.59,123.86]
[1748394773408,35.66370807,176.65,176.6,15.85051816]
[1748394774113,19.81318991,176.65,176.61,15.85051816]
[1748394776829,35.66370807,176.65,176.6,15.85051816]
[1748394777037,15.85051816,176.64,176.6,15.85051816]
[1748394777206,26.0,176.63,176.59,8.86]
[1748394777412,15.85051816,176.61,176.57,15.85051816]
[1748394777637,15.85051816,176.61,176.55,1.5954]
[1748394777940,15.85051816,176.61,176.56,15.85051816]
[1748394778235,76.29051816,176.62,176.57,15.85051816]
[1748394778939,15.85051816,176.6,176.55,1.5954]
[1748394779118,15.85051816,176.59,176.55,15.85051816]
[1748394779328,34.44,176.58,176.55,15.85051816]
[1748394780126,34.44,176.58,176.56,15.85051816]
[1748394781438,34.44,176.58,176.57,15.85051816]
[1748394781655,5.6609114,176.65,176.57,15.85051816]
[1748394781844,5.6609114,176.65,176.62,15.85051816]
[1748394782034,34.44,176.64,176.61,15.85051816]
[1748394782949,5.66155239,176.63,176.61,15.85051816]
[1748394783251,40.10155239,176.63,176.61,15.85051816]
[1748394783543,5.66155239,176.63,176.61,15.85051816]
[1748394783734,34.44,176.62,176.61,15.85051816]
[1748394785448,40.10187294,176.62,176.61,15.85051816]
[1748394786561,40.10163814,176.63,176.61,15.85051816]
[1748394786725,5.66163814,176.63,176.62,15.85051816]
[1748394786931,40.10163814,176.63,176.62,15.85051816]
[1748394787136,5.66163814,176.63,176.62,15.85051816]
[1748394787735,40.10135427,176.64,176.62,15.85051816]
[1748394787954,40.10135427,176.64,176.63,15.85051816]
[1748394789473,5.66027056,176.67,176.63,15.85051816]
[1748394789778,5.66027056,176.67,176.66,15.85051816]
[1748394789973,54.25094696,176.67,176.65,15.85051816]
[1748394790173,54.25094696,176.67,176.64,15.85051816]
[1748394790174,34.44,176.66,176.64,15.85051816]
[1748394790686,34.44,176.66,176.62,15.85051816]
[1748394790855,50.29051816,176.66,176.62,15.85051816]
[1748394791574,5.6609114,176.65,176.62,15.85051816]
[1748394791955,35.66370807,176.65,176.61,15.85051816]
[1748394793190,15.85051816,176.63,176.58,15.85051816]
[1748394793495,21.51271169,176.61,176.57,15.85051816]
[1748394793657,21.51271169,176.61,176.56,15.85051816]
[1748394794891,35.66819552,176.61,176.56,15.85051816]
[1748394796206,15.85051816,176.59,176.55,15.85051816]
[1748394796374,34.44,176.58,176.55,15.85051816]
[1748394797194,5.66347624,176.57,176.55,15.85051816]
[1748394797573,5.66347624,176.57,176.54,15.85051816]
[1748394799368,5.66347624,176.57,176.55,15.85051816]
[1748394801091,5.66219353,176.61,176.56,15.85051816]
[1748394801314,34.44,176.6,176.57,15.85051816]
[1748394801489,5.66283481,176.59,176.57,15.85051816]
[1748394802522,40.10283481,176.59,176.57,15.85051816]
[1748394804708,40.10283481,176.59,176.58,15.85051816]
[1748394805495,34.44,176.6,176.58,15.85051816]
[1748394805736,19.81714011,176.62,176.59,15.85051816]
[1748394805737,5.66187294,176.62,176.59,15.85051816]
[1748394805915,5.66187294,176.62,176.61,15.85051816]
[1748394805916,40.10187294,176.62,176.61,15.85051816]
[1748394807316,40.10187294,176.62,176.6,15.85051816]
[1748394808112,70.10707346,176.62,176.57,15.85051816]
[1748394808510,70.10707346,176.62,176.58,15.85051816]
[1748394809202,70.10707346,176.62,176.57,15.85051816]
[1748394812418,19.8165553,176.62,176.59,15.85051816]
[1748394812628,34.44,176.61,176.59,15.85051816]
[1748394812829,19.8165553,176.62,176.55,8.74720887]
[1748394812830,5.66187294,176.62,176.6,15.85051816]
[1748394813017,34.44,176.61,176.6,15.85051816]
[1748394813623,34.44,176.61,176.59,15.85051816]
[1748394815420,5.66251415,176.6,176.59,15.85051816]
[1748394818333,5.66251415,176.6,176.55,106.60720887]
[1748394818506,5.66251415,176.6,176.59,15.85051816]
[1748394819517,5.66251415,176.6,176.58,15.85051816]
[1748394822146,5.66251415,176.6,176.55,106.60720887]
[1748394822147,19.81879954,176.6,176.55,106.60720887]
[1748394822351,19.81879954,176.6,176.57,15.85051816]
[1748394822713,19.81879954,176.6,176.58,15.85051816]
[1748394823418,19.81879954,176.6,176.59,15.85051816]
[1748394824747,19.81879954,176.6,176.58,15.85051816]
[1748394829755,35.6693177,176.6,176.55,33.45772703]
[1748394830128,35.6693177,176.6,176.56,15.85051816]
[1748394831128,35.6693177,176.6,176.55,33.45772703]
[1748394831331,35.6693177,176.6,176.55,24.59772703]
[1748394832234,15.85051816,176.59,176.55,24.59772703]
[1748394832465,34.44,176.58,176.55,24.59772703]
[1748394832774,34.44,176.58,176.56,15.85051816]
[1748394834560,5.66347624,176.57,176.56,15.85051816]
[1748394836064,5.66347624,176.57,176.55,24.59772703]
[1748394838350,5.66347624,176.57,176.55,8.74720887]
[1748394838542,5.66347624,176.57,176.55,24.59772703]
[1748394842780,5.66347624,176.57,176.55,8.74720887]
[1748394845561,21.5139944,176.57,176.55,8.74720887]
[1748394845760,5.66347624,176.57,176.55,8.74720887]
[1748394848698,5.66347624,176.57,176.55,24.59772703]
[1748394848870,5.66347624,176.57,176.56,15.85051816]
[1748394850292,5.66315551,176.58,176.56,15.85051816]
[1748394850501,5.66315551,176.58,176.57,15.85051816]
[1748394851197,5.66315551,176.58,176.55,8.74720887]
[1748394851504,5.66315551,176.58,176.57,15.85051816]
[1748394852591,48.59628539,176.6,176.57,15.85051816]
[1748394852992,48.59628539,176.6,176.58,15.85051816]
[1748394855083,48.59628539,176.6,176.55,8.74720887]
[1748394855084,5.66283481,176.59,176.55,8.74720887]
[1748394855400,5.66283481,176.59,176.58,15.85051816]
[1748394855975,5.66187294,176.62,176.58,15.85051816]
[1748394856180,5.66187294,176.62,176.61,15.85051816]
[1748394856589,5.66187294,176.62,176.57,8.86]
[1748394856789,19.8165553,176.62,176.59,15.85051816]
[1748394858297,5.66187294,176.62,176.61,15.85051816]
[1748394859992,19.8165553,176.62,176.57,97.86]
[1748394860191,19.8165553,176.62,176.59,15.85051816]
[1748394869917,35.66707346,176.62,176.57,8.86]
[1748394870118,35.66707346,176.62,176.57,24.71051816]
[1748394870540,35.66707346,176.62,176.57,15.85051816]
[1748394871954,19.81879954,176.6,176.57,15.85051816]
[1748394872250,34.44,176.59,176.57,15.85051816]
[1748394872635,34.44,176.59,176.56,15.85051816]
[1748394874355,5.66315551,176.58,176.56,15.85051816]
[1748394874576,5.66315551,176.58,176.57,15.85051816]
[1748394879663,5.66315551,176.58,176.56,15.85051816]
[1748394880247,19.82104428,176.58,176.53,34.86]
[1748394880559,35.67156244,176.58,176.53,24.71051816]
[1748394881565,63.98733999,176.58,176.53,8.86]
[1748394881764,15.85051816,176.56,176.51,15.85051816]
[1748394881988,50.29051816,176.55,176.5,15.85051816]
[1748394883678,19.82553528,176.54,176.5,15.85051816]
[1748394887357,35.67605344,176.54,176.49,15.85051816]
[1748394890182,35.67605344,176.54,176.48,8.86]
[1748394890183,35.67605344,176.54,176.5,15.85051816]
[1748394892881,35.67605344,176.54,176.49,15.85051816]
[1748394895164,15.85051816,176.53,176.48,8.86]
[1748394895376,15.85051816,176.53,176.48,24.71051816]
[1748394895586,15.85051816,176.53,176.49,15.85051816]
[1748394896289,5.66508044,176.52,176.49,15.85051816]
[1748394896466,19.82778155,176.52,176.48,24.71051816]
[1748394898765,19.82778155,176.52,176.49,15.85051816]
[1748394898972,19.82778155,176.52,176.48,8.86]
[1748394898973,5.66508044,176.52,176.5,15.85051816]
[1748394899177,5.66508044,176.52,176.51,15.85051816]
[1748394899893,5.66508044,176.52,176.5,15.85051816]
[1748394900488,5.66508044,176.52,176.51,15.85051816]
[1748394901974,5.66475953,176.53,176.5,15.85051816]
[1748394903987,5.66475953,176.53,176.5,10.15671815]
[1748394905197,29.9833765,176.53,176.49,10.15671815]
[1748394905491,10.15671815,176.52,176.48,8.86]
[1748394905664,19.82665835,176.53,176.44,90.6024]
[1748394905871,10.15671815,176.5,176.45,10.15671815]
[1748394906069,10.15671815,176.5,176.46,10.15671815]
[1748394906762,10.15671815,176.51,176.46,10.15671815]
[1748394906967,10.15671815,176.49,176.45,10.15671815]
[1748394907379,10.15671815,176.5,176.45,10.15671815]
[1748394907690,10.15671815,176.5,176.44,10.4624]
[1748394907691,10.15671815,176.51,176.46,10.15671815]
[1748394907987,15.87735398,176.51,176.46,15.87735398]
[1748394908391,48.150456,176.53,176.46,15.87735398]
[1748394908596,15.87735398,176.51,176.46,15.87735398]
[1748394908967,19.83002831,176.5,176.46,15.87735398]
[1748394909188,35.70738229,176.5,176.45,15.87735398]
[1748394909490,15.87735398,176.49,176.45,15.87735398]
[1748394909686,50.31735398,176.49,176.45,15.87735398]
[1748394909887,34.44,176.49,176.45,15.87735398]
[1748394911294,5.66636446,176.48,176.45,15.87735398]
[1748394913301,19.83227561,176.48,176.44,8.86]
[1748394913505,35.70962959,176.48,176.44,8.86]
[1748394914002,15.87735398,176.46,176.42,30.03304004]
[1748394914772,15.87735398,176.47,176.42,30.03304004]
[1748394915172,35.71187737,176.46,176.42,14.15568606]
[1748394915392,50.31735398,176.45,176.42,14.15568606]
[1748394916889,15.87735398,176.44,176.42,14.15568606]
[1748394917203,5.66797029,176.43,176.42,14.15568606]
[1748394919298,21.54500303,176.44,176.42,14.15568606]
[1748394919681,15.87735398,176.43,176.42,14.15568606]
[1748394921386,21.54532427,176.43,176.42,14.15568606]
[1748394921603,35.71525001,176.43,176.38,89.0]
[1748394921905,35.71525001,176.43,176.36,15.87735398]
[1748394921906,15.87735398,176.41,176.36,15.87735398]
[1748394922201,50.33735398,176.41,176.36,15.87735398]
[1748394922787,34.46,176.41,176.37,15.87735398]
[1748394923488,5.66893424,176.4,176.35,123.33333333]
[1748394923716,5.66893424,176.4,176.37,15.87735398]
[1748394925222,21.54628822,176.4,176.35,8.33333333]
[1748394925383,21.54628822,176.4,176.36,15.87735398]
[1748394925582,21.54628822,176.4,176.35,8.33333333]
[1748394925785,21.54628822,176.4,176.36,15.87735398]
[1748394926608,15.87735398,176.39,176.35,24.21068731]
[1748394927615,15.87735398,176.39,176.35,8.33333333]
[1748394928722,5.66957704,176.38,176.35,24.21068731]
[1748394931025,5.66957704,176.38,176.35,8.33333333]
[1748394931529,5.66957704,176.38,176.35,24.21068731]
[1748394931688,15.87735398,176.36,176.35,8.33333333]
[1748394932722,21.54757398,176.36,176.35,8.33333333]
[1748394933034,40.19722284,176.36,176.35,8.33333333]
[1748394933513,40.33938441,176.36,176.35,8.33333333]
[1748394933814,40.33938441,176.36,176.27,30.05960218]
[1748394933815,18.64964886,176.35,176.27,30.05960218]
[1748394934114,15.87735398,176.31,176.27,8.86]
[1748394934323,15.87735398,176.29,176.27,8.86]
[1748394934517,15.87735398,176.29,176.23,1.5373]
[1748394934689,5.67279328,176.28,176.24,15.87735398]
[1748394935400,5.67279328,176.28,176.21,15.87735398]
[1748394935401,15.87735398,176.26,176.21,15.87735398]
[1748394935601,19.85477648,176.28,176.19,8.86]
[1748394935602,15.87735398,176.25,176.19,8.86]
[1748394935801,34.5,176.27,176.19,8.86]
[1748394935802,15.87735398,176.23,176.19,8.86]
[1748394935990,15.87735398,176.21,176.14,91.9468]
[1748394936194,15.87735398,176.19,176.14,26.26415398]
[1748394936521,50.39735398,176.19,176.14,26.26415398]
[1748394936933,5.67601316,176.18,176.15,15.87735398]
[1748394937420,5.67601316,176.18,176.14,10.3868]
[1748394937593,5.67601316,176.18,176.15,15.87735398]
[1748394938420,5.67601316,176.18,176.14,26.26415398]
[1748394938798,5.67601316,176.18,176.14,10.3868]
[1748394938998,5.67601316,176.18,176.15,15.87735398]
[1748394940314,5.67601316,176.18,176.16,15.87735398]
[1748394940617,40.19574616,176.19,176.16,15.87735398]
[1748394941923,40.19574616,176.19,176.14,10.3868]
[1748394942109,40.19574616,176.19,176.16,15.87735398]
[1748394942505,34.52,176.19,176.14,16.06409129]
[1748394942704,34.52,176.19,176.18,15.87735398]
[1748394943711,34.52,176.19,176.14,10.3868]
[1748394943920,40.19572332,176.19,176.17,15.87735398]
[1748394944109,34.52,176.19,176.17,15.87735398]
[1748394944927,40.19569533,176.19,176.17,15.87735398]
[1748394945116,5.67569533,176.19,176.17,15.87735398]
[1748394945602,5.67569533,176.19,176.14,10.3868]
[1748394945603,5.67569533,176.19,176.16,15.87735398]
[1748394945803,5.67569533,176.19,176.14,10.3868]
[1748394946123,5.67569533,176.19,176.16,15.87735398]
[1748394946826,5.67569533,176.19,176.14,8.86]
[1748394947011,15.87735398,176.18,176.14,24.73735398]
[1748394947211,15.87735398,176.16,176.14,15.87735398]
[1748394947414,50.47735398,176.16,176.11,15.87735398]
[1748394947610,50.47735398,176.16,176.12,15.87735398]
[1748394947822,5.67697984,176.15,176.12,15.87735398]
[1748394948003,5.67697984,176.15,176.11,15.87735398]
[1748394949423,5.67697984,176.15,176.1,23.13578787]
[1748394949424,5.6767344,176.16,176.13,15.87735398]
[1748394949641,5.6767344,176.16,176.1,23.13578787]
[1748394949642,40.2767344,176.16,176.14,15.87735398]
[1748394950137,34.6,176.16,176.14,15.87735398]
[1748394951144,44.64964886,176.22,176.15,15.87735398]
[1748394951145,5.67472477,176.22,176.15,15.87735398]
[1748394951311,34.6,176.21,176.18,15.87735398]
[1748394951754,50.47735398,176.21,176.16,15.87735398]
[1748394951908,34.62,176.2,176.16,15.87735398]
[1748394952110,5.67569101,176.19,176.17,15.87735398]
[1748394952333,5.67569101,176.19,176.13,31.67762448]
[1748394952515,5.67569101,176.19,176.17,15.87735398]
[1748394953438,40.27545841,176.2,176.17,15.87735398]
[1748394957249,40.27545841,176.2,176.16,15.87735398]
[1748394958026,40.27545841,176.2,176.17,15.87735398]
[1748394962549,40.27545841,176.2,176.13,26.0]
[1748394962758,40.27545841,176.2,176.17,15.87735398]
[1748394963061,40.27545841,176.2,176.18,15.87735398]
[1748394965329,5.67472477,176.22,176.19,15.87735398]
[1748394965554,40.27450302,176.23,176.21,15.87735398]
[1748394965744,34.6,176.23,176.22,15.87735398]
[1748394966255,40.2745414,176.23,176.19,26.0]
[1748394966459,5.6745414,176.23,176.22,15.87735398]
[1748394967059,5.6745414,176.23,176.21,15.87735398]
[1748394968343,5.6745414,176.23,176.22,15.87735398]
[1748394968650,5.6745414,176.23,176.21,15.87735398]
[1748394970245,38.98161271,176.26,176.17,27.5064]
[1748394970246,5.67375886,176.25,176.22,15.87735398]
[1748394970449,5.67375886,176.25,176.24,15.87735398]
[1748394970761,5.67375886,176.25,176.21,15.87735398]
[1748394970762,19.85815602,176.25,176.21,15.87735398]
[1748394970951,19.85815602,176.25,176.18,34.92]
[1748394971268,19.85815602,176.25,176.22,15.87735398]
[1748394972454,14.18439716,176.25,176.22,15.87735398]
[1748394972660,14.18439716,176.25,176.23,15.87735398]
[1748394977876,34.58,176.24,176.18,97.92]
[1748394978053,50.45735398,176.24,176.19,15.87735398]
[1748394978250,50.45735398,176.24,176.2,15.87735398]
[1748394978251,34.58,176.24,176.2,15.87735398]
[1748394978548,34.58,176.24,176.21,15.87735398]
[1748394979772,5.67440276,176.23,176.21,15.87735398]
[1748394981549,5.67440276,176.23,176.22,15.87735398]
[1748394983464,5.67440276,176.23,176.17,90.5064]
[1748394983465,19.86040968,176.23,176.17,90.5064]
[1748394983656,19.86040968,176.23,176.2,15.87735398]
[1748394985368,19.86040968,176.23,176.21,15.87735398]
[1748394987268,5.67440276,176.23,176.21,15.87735398]
[1748394987472,5.67440276,176.23,176.22,15.87735398]
[1748394987851,5.67440276,176.23,176.21,15.87735398]
[1748394990659,19.86040968,176.23,176.21,15.87735398]
[1748394992752,19.86040968,176.23,176.2,15.87735398]
[1748394992985,19.86040968,176.23,176.19,15.87735398]
[1748394993162,15.87735398,176.22,176.18,15.87735398]
[1748394993365,15.87735398,176.22,176.17,104.87735398]
[1748394993576,15.87735398,176.22,176.17,15.87735398]
[1748394994270,35.73776366,176.23,176.18,15.87735398]
[1748394994479,19.86040968,176.23,176.2,15.87735398]
[1748394995489,34.54,176.22,176.21,15.87735398]
[1748394997071,40.21472477,176.22,176.21,15.87735398]
[1748394997268,5.67472477,176.22,176.21,15.87735398]
[1748394997466,40.23375886,176.25,176.21,15.87735398]
[1748394997675,5.67375886,176.25,176.24,15.87735398]
[1748394997882,5.67375886,176.25,176.23,15.87735398]
[1748394998288,5.67375886,176.25,176.22,15.87735398]
[1748394998465,5.67375886,176.25,176.16,103.73881598]
[1748394998466,35.73551,176.25,176.21,15.87735398]
[1748394998663,35.73551,176.25,176.2,15.87735398]
[1748394998889,35.73551,176.25,176.21,15.87735398]
[1748394999074,19.85815602,176.25,176.21,15.87735398]
[1748395000666,35.73551,176.25,176.2,15.87735398]
[1748395000890,19.85815602,176.25,176.21,15.87735398]
[1748395005284,19.85815602,176.25,176.22,15.87735398]
[1748395006121,19.85815602,176.25,176.21,15.87735398]
[1748395006282,35.73551,176.25,176.21,15.87735398]
[1748395007403,35.73551,176.25,176.16,97.92]
[1748395007608,35.73551,176.25,176.2,15.87735398]
[1748395007988,35.73551,176.25,176.16,97.92]
[1748395008193,15.87735398,176.22,176.17,15.87735398]
[1748395008490,34.56,176.21,176.17,15.87735398]